fUSD/lending_fUSD_20241107
["ID","MTS","AMOUNT","RATE_DAILY","PERIOD"]
[341531244,1730962247428,-500.0,0.00031599,4]
[341531245,1730962247438,-500.0,0.00031599,4]
[341531246,1730962247448,-1311.48,0.00031599,4]
[341531247,1730962247457,-500.0,0.00031599,4]
[341531248,1730962247466,-500.0,0.00031599,4]
[341531249,1730962247479,-702.12,0.00031599,4]
[341531250,1730962247493,-519.93,0.00031599,4]
[341531251,1730962247502,-1546.77,0.00031599,4]
[341531252,1730962247511,-500.0,0.00031599,4]
[341531253,1730962247520,-500.0,0.00031599,4]
[341531254,1730962247528,-2135.47,0.00031599,4]
[341531255,1730962247538,-602.89,0.00031599,4]
[341531256,1730962247547,-500.0,0.00031599,4]
[341531257,1730962247556,-1199.73,0.00031599,4]
[341531258,1730962247565,-500.0,0.00031599,4]
[341531259,1730962247575,-500.0,0.00031599,4]
[341531260,1730962247584,-500.0,0.00031599,4]
[341531261,1730962247593,-500.0,0.00031599,4]
[341531262,1730962247602,-500.0,0.00031599,4]
[341531263,1730962247611,-500.0,0.00031599,4]
[341531264,1730962247620,-1344.0,0.00031599,4]
[341531265,1730962247630,-500.0,0.00031599,4]
[341531266,1730962247639,-1558.52,0.00031599,4]
[341531267,1730962247649,-1687.7,0.00031599,4]
[341531268,1730962247658,-503.38255934,0.00031599,4]
[341531269,1730962247671,-542.36,0.00031599,4]
[341531270,1730962247680,-1113.41,0.00031599,4]
[341531271,1730962247690,-500.0,0.00031599,4]
[341531272,1730962247699,-500.0,0.00031599,4]
[341531273,1730962247710,-500.0,0.00031599,4]
[341531274,1730962247721,-500.0,0.00031599,4]
[341531275,1730962247730,-500.0,0.00031599,4]
[341531276,1730962247739,-1379.61,0.00031599,4]
[341531277,1730962247749,-500.0,0.00031599,4]
[341531278,1730962247760,-500.0,0.00031599,4]
[341531279,1730962247769,-1440.77,0.00031599,4]
[341531280,1730962247779,-500.0,0.00031599,4]
[341531281,1730962247788,-576.39,0.00031599,4]
[341531282,1730962247797,-1131.84,0.00031599,4]
[341531283,1730962247807,-1203.99,0.00031599,4]
[341531284,1730962247815,-722.2,0.00031599,4]
[341531285,1730962247825,-500.0,0.00031599,4]
[341531286,1730962247834,-500.0,0.00031599,4]
[341531287,1730962248067,-1826.91,0.00031599,4]
[341531288,1730962248079,-500.0,0.00031599,4]
[341531289,1730962248090,-2019.93,0.00031599,4]
[341531290,1730962248101,-500.0,0.00031599,4]
[341531291,1730962248112,-500.0,0.00031599,4]
[341531292,1730962248122,-500.0,0.00031599,4]
[341531293,1730962248132,-500.0,0.00031599,4]
[341531294,1730962248143,-500.0,0.00031599,4]
[341531295,1730962248153,-865.01,0.00031599,4]
[341531296,1730962248163,-1404.09,0.00031599,4]
[341531297,1730962248173,-1826.58,0.00031599,4]
[341531298,1730962248183,-1560.42,0.00031599,4]
[341531299,1730962248193,-661.01,0.00031599,4]
[341531300,1730962248203,-2439.02,0.00031599,4]
[341531301,1730962248213,-1290.49,0.00031599,4]
[341531302,1730962248226,-795.66,0.00031599,4]
[341531303,1730962248236,-500.0,0.00031599,4]
[341531304,1730962248248,-1358.88,0.00031599,4]
[341531305,1730962248258,-2000.0,0.00031599,4]
[341531306,1730962248482,-500.0,0.00031599,4]
[341531307,1730962248492,-1026.73,0.00031599,4]
[341531308,1730962248502,-500.0,0.00031599,4]
[341531309,1730962248512,-1447.0,0.00031599,4]
[341531310,1730962248521,-1082.91,0.00031599,4]
[341531311,1730962248531,-740.29,0.00031599,4]
[341531312,1730962248540,-579.74,0.00031599,4]
[341531313,1730962248549,-526.33,0.00031599,4]
[341531314,1730962248560,-500.0,0.00031599,4]
[341531315,1730962248569,-1130.98,0.00031599,4]
[341531316,1730962248579,-500.0,0.00031599,4]
[341531317,1730962248588,-500.0,0.00031599,4]
[341531318,1730962248598,-150.0,0.00031599,4]
[341531319,1730962248607,-500.0,0.00031599,4]
[341531320,1730962248616,-500.0,0.00031599,4]
[341531321,1730962248626,-1716.52,0.00031599,4]
[341531322,1730962248635,-824.36,0.00031599,4]
[341531323,1730962248645,-1670.61,0.00031599,4]
[341531324,1730962248654,-500.0,0.00031599,4]
[341531325,1730962248664,-2137.54,0.00031599,4]
[341531326,1730962248676,-1843.63,0.00031599,4]
[341531327,1730962248686,-1617.36,0.00031599,4]
[341531328,1730962248696,-500.0,0.00031599,4]
[341531329,1730962248707,-500.0,0.00031599,4]
[341531330,1730962248716,-513.8,0.00031599,4]
[341531331,1730962248729,-500.0,0.00031599,4]
[341531332,1730962248739,-994.44,0.00031599,4]
[341531333,1730962248749,-1429.55,0.00031599,4]
[341531334,1730962248759,-983.13,0.00031599,4]
[341531335,1730962248769,-1746.13,0.00031599,4]
[341531336,1730962248778,-500.0,0.00031599,4]
[341531337,1730962248788,-1056.14,0.00031599,4]
[341531338,1730962248798,-500.0,0.00031599,4]
[341531339,1730962248808,-552.69902153,0.00031599,4]
[341531340,1730962248817,-500.0,0.00031599,4]
[341531341,1730962248827,-988.76,0.00031599,4]
[341531342,1730962248836,-500.0,0.00031599,4]
[341531343,1730962248846,-500.0,0.00031599,4]
[341531344,1730962248855,-500.0,0.00031599,4]
[341531345,1730962248865,-500.0,0.00031599,4]
[341531346,1730962248874,-500.0,0.00031599,4]
[341531347,1730962248884,-1698.98,0.00031599,4]
[341531348,1730962248893,-500.0,0.00031599,4]
[341531349,1730962248903,-729.77,0.00031599,4]
[341531350,1730962248913,-500.0,0.00031599,4]
[341531351,1730962248923,-1498.88,0.00031599,4]
[341531352,1730962248932,-2070.07,0.00031599,4]
[341531353,1730962248942,-1447.49,0.00031599,4]
[341531354,1730962248952,-1678.97,0.00031599,4]
[341531355,1730962248962,-500.0,0.00031599,4]
[341531356,1730962248973,-500.0,0.00031599,4]
[341531357,1730962248983,-1001.08,0.00031599,4]
[341531358,1730962248992,-855.02,0.00031599,4]
[341531359,1730962249002,-500.0,0.00031599,4]
[341531360,1730962249012,-856.79,0.00031599,4]
[341531361,1730962249021,-856.79,0.00031599,4]
[341531362,1730962249032,-638.1,0.00031599,4]
[341531363,1730962249041,-500.0,0.00031599,4]
[341531364,1730962249051,-1603.87,0.00031599,4]
[341531365,1730962249060,-500.0,0.00031599,4]
[341531366,1730962249070,-500.0,0.00031599,4]
[341531367,1730962249080,-922.61,0.00031599,4]
[341531368,1730962249091,-514.34,0.00031599,4]
[341531369,1730962249101,-500.0,0.00031599,4]
[341531370,1730962249111,-500.0,0.00031599,4]
[341531371,1730962249121,-500.0,0.00031599,4]
[341531372,1730962249131,-500.0,0.00031599,4]
[341531373,1730962249140,-500.0,0.00031599,4]
[341531374,1730962249150,-500.0,0.00031599,4]
[341531375,1730962249159,-500.0,0.00031599,4]
[341531376,1730962249169,-166.21,0.00031618,2]
[341531377,1730962249179,-166.62607434,0.00031671,2]
[341531378,1730962249188,-575.43,0.00031679,4]
[341531379,1730962249198,-575.43,0.00031679,4]
[341531380,1730962249208,-575.43,0.00031679,4]
[341531381,1730962249218,-575.43,0.00031679,4]
[341531382,1730962249228,-575.43,0.00031679,4]
[341531383,1730962249238,-575.43,0.00031679,4]
[341531384,1730962249247,-575.43,0.00031679,4]
[341531385,1730962249257,-740.29,0.00031679,4]
[341531386,1730962249266,-740.29,0.00031679,4]
[341531387,1730962249276,-740.29,0.00031679,4]
[341531388,1730962249285,-740.29,0.00031679,4]
[341531389,1730962249295,-740.29,0.00031679,4]
[341531390,1730962249304,-740.29,0.00031679,4]
[341531391,1730962249313,-740.29,0.00031679,4]
[341531392,1730962249323,-1716.52,0.00031679,4]
[341531393,1730962249332,-1716.52,0.00031679,4]
[341531394,1730962249341,-1716.52,0.00031679,4]
[341531395,1730962249350,-1716.52,0.00031679,4]
[341531396,1730962249360,-1716.52,0.00031679,4]
[341531397,1730962249369,-1716.52,0.00031679,4]
[341531398,1730962249380,-1716.52,0.00031679,4]
[341531399,1730962249389,-514.34,0.00031679,4]
[341531400,1730962249399,-514.34,0.00031679,4]
[341531401,1730962249408,-514.34,0.00031679,4]
[341531402,1730962249418,-514.34,0.00031679,4]
[341531403,1730962249427,-514.34,0.00031679,4]
[341531404,1730962249437,-514.34,0.00031679,4]
[341531405,1730962249446,-514.34,0.00031679,4]
[341531406,1730962249457,-575.43,0.00031698,4]
[341531407,1730962249466,-740.29,0.00031698,4]
[341531408,1730962249479,-1716.52,0.00031698,4]
[341531409,1730962249488,-500.0,0.00031698,4]
[341531410,1730962249497,-514.34,0.00031698,4]
[341531411,1730962249507,-1017.16,0.00031699,4]
[341531412,1730962249517,-877.93,0.00031699,4]
[341531413,1730962249526,-790.76,0.00031699,4]
[341531414,1730962249536,-578.13,0.00031699,4]
[341531415,1730962249545,-1278.08,0.00031699,4]
[341531416,1730962249555,-500.0,0.00031768,4]
[341531417,1730962249564,-500.0,0.00031768,4]
[341531418,1730962249573,-1612.59,0.00031768,4]
[341531419,1730962249583,-500.0,0.00031768,4]
[341531420,1730962249592,-2551.15,0.00031768,4]
[341531421,1730962249602,-1216.35,0.00031768,4]
[341531422,1730962249612,-603.17,0.00031768,4]
[341531423,1730962249621,-616.23,0.00031768,4]
[341531424,1730962249630,-3147.07,0.00031768,4]
[341531425,1730962249640,-4486.42,0.00031768,4]
[341531426,1730962249650,-3144.66,0.00031768,4]
[341531427,1730962249659,-2188.25,0.00031768,4]
[341531428,1730962249671,-1563.31,0.00031768,4]
[341531429,1730962249680,-581.3,0.00031768,4]
[341531430,1730962249690,-500.0,0.00031768,4]
[341531431,1730962249699,-992.5,0.00031768,4]
[341531432,1730962249710,-3687.39,0.00031768,4]
[341531433,1730962249722,-500.0,0.00031768,4]
[341531434,1730962249732,-660.4,0.00031768,4]
[341531435,1730962249742,-500.0,0.00031768,4]
[341531436,1730962249754,-500.0,0.00031768,4]
[341531437,1730962249764,-1185.82,0.00031768,4]
[341531438,1730962249774,-1821.2,0.00031768,4]
[341531439,1730962249784,-1466.2,0.00031768,4]
[341531440,1730962249794,-704.81,0.00031768,4]
[341531441,1730962249803,-500.0,0.00031768,4]
[341531442,1730962249813,-500.0,0.00031768,4]
[341531443,1730962249822,-601.6,0.00031768,4]
[341531444,1730962249832,-546.83,0.00031768,4]
[341531445,1730962249841,-2072.83,0.00031768,4]
[341531446,1730962249851,-500.0,0.00031769,4]
[341531447,1730962249861,-500.0,0.00031769,4]
[341531448,1730962249871,-666.8,0.00031769,4]
[341531449,1730962249882,-500.0,0.00031769,4]
[341531450,1730962249892,-505.21526477,0.00031769,4]
[341531451,1730962249901,-890.46,0.00031769,4]
[341531452,1730962249912,-220.51144692,0.00031769,4]
[341531453,1730962249922,-500.0,0.00031769,4]
[341531454,1730962249932,-500.0,0.00031769,4]
[341531455,1730962249941,-500.0,0.00031769,4]
[341531456,1730962249951,-619.7,0.00031769,4]
[341531457,1730962249961,-500.0,0.00031769,4]
[341531458,1730962249970,-500.0,0.00031769,4]
[341531459,1730962249981,-500.0,0.00031769,4]
[341531460,1730962249990,-500.0,0.00031769,4]
[341531461,1730962250000,-287.748062,0.00031769,4]
[341531462,1730962250010,-500.0,0.00031769,4]
[341531463,1730962250019,-544.76,0.00031769,4]
[341531464,1730962250030,-542.05509896,0.00031769,4]
[341531465,1730962250039,-920.72,0.00031769,4]
[341531466,1730962250049,-500.0,0.00031769,4]
[341531467,1730962250058,-500.0,0.00031769,4]
[341531468,1730962250069,-500.0,0.00031769,4]
[341531469,1730962250078,-500.0,0.00031769,4]
[341531470,1730962250090,-590.23,0.00031769,4]
[341531471,1730962250101,-500.0,0.00031769,4]
[341531472,1730962250111,-500.0,0.00031769,4]
[341531473,1730962250121,-641.57957022,0.00031769,4]
[341531474,1730962250131,-150.09732268,0.00031769,4]
[341531475,1730962250141,-2343.54,0.00031769,4]
[341531476,1730962250151,-500.0,0.00031769,4]
[341531477,1730962250161,-591.56,0.00031769,4]
[341531478,1730962250170,-1053.05,0.00031769,4]
[341531479,1730962250180,-500.0,0.00031769,4]
[341531480,1730962250190,-550.87573626,0.00031769,4]
[341531481,1730962250200,-500.0,0.00031769,4]
[341531482,1730962250210,-500.0,0.00031769,4]
[341531483,1730962250220,-514.93,0.00031769,4]
[341531484,1730962250231,-500.0,0.00031769,4]
[341531485,1730962250241,-1291.83,0.00031769,4]
[341531486,1730962250250,-500.0,0.00031769,4]
[341531487,1730962250260,-671.96,0.00031769,4]
[341531488,1730962250269,-372.808853,0.00031769,4]
[341531489,1730962250279,-2070.51,0.00031769,4]
[341531490,1730962250288,-500.0,0.00031769,4]
[341531491,1730962250298,-500.0,0.00031769,4]
[341531492,1730962250307,-3771.23,0.00031769,4]
[341531493,1730962250317,-500.0,0.00031769,4]
[341531494,1730962250327,-558.66,0.00031769,4]
[341531495,1730962250337,-500.0,0.00031769,4]
[341531496,1730962250346,-627.83786583,0.00031769,4]
[341531497,1730962250356,-500.0,0.00031769,4]
[341531498,1730962250366,-500.0,0.00031769,4]
[341531499,1730962250376,-1285.43,0.00031769,4]
[341531500,1730962250386,-9744.04,0.00031769,4]
[341531501,1730962250395,-511.2473234,0.00031769,4]
[341531502,1730962250405,-714.86,0.00031769,4]
[341531503,1730962250414,-559.87,0.00031769,4]
[341531504,1730962250423,-500.0,0.00031769,4]
[341531505,1730962250433,-500.0,0.00031769,4]
[341531506,1730962250443,-380.974689,0.00031769,4]
[341531507,1730962250452,-500.0,0.00031769,4]
[341531508,1730962250462,-500.0,0.00031769,4]
[341531509,1730962250473,-500.0,0.00031769,4]
[341531510,1730962250482,-1617.9,0.00031769,4]
[341531511,1730962250492,-1876.28,0.00031769,4]
[341531512,1730962250501,-171.95289575,0.00031769,4]
[341531513,1730962250511,-500.0,0.00031769,4]
[341531514,1730962250521,-500.0,0.00031769,4]
[341531515,1730962250530,-500.0,0.00031769,4]
[341531516,1730962250540,-1494.21,0.00031769,4]
[341531517,1730962250550,-500.0,0.00031769,4]
[341531518,1730962250567,-500.0,0.00031769,4]
[341531519,1730962250576,-702.08,0.00031769,4]
[341531520,1730962250587,-500.0,0.00031769,4]
[341531521,1730962250597,-6925.04,0.00031769,4]
[341531522,1730962250606,-500.0,0.00031769,4]
[341531523,1730962250616,-915.71,0.00031769,4]
[341531524,1730962250625,-549.54,0.00031769,4]
[341531525,1730962250635,-227.82,0.00031769,4]
[341531526,1730962250644,-687.42,0.00031769,4]
[341531527,1730962250654,-831.7,0.00031769,4]
[341531528,1730962250665,-1143.96,0.00031769,4]
[341531529,1730962250763,-500.0,0.00031769,4]
[341531530,1730962250773,-500.0,0.00031769,4]
[341531531,1730962250783,-694.07,0.00031769,4]
[341531532,1730962250792,-1015.89,0.00031769,4]
[341531533,1730962250802,-500.0,0.00031769,4]
[341531534,1730962250811,-500.0,0.00031769,4]
[341531535,1730962250820,-500.0,0.00031769,4]
[341531536,1730962250830,-199.34211831,0.00031769,4]
[341531537,1730962250839,-513.37,0.00031769,4]
[341531538,1730962250849,-500.0,0.00031769,4]
[341531539,1730962250858,-572.06,0.00031769,4]
[341531540,1730962250867,-500.0,0.00031769,4]
[341531541,1730962250876,-500.0,0.00031769,4]
[341531542,1730962250885,-500.0,0.00031769,4]
[341531543,1730962250894,-500.0,0.00031769,4]
[341531544,1730962250903,-500.0,0.00031769,4]
[341531545,1730962250912,-1261.41,0.00031769,4]
[341531546,1730962250921,-500.0,0.00031769,4]
[341531547,1730962250931,-1130.67,0.00031769,4]
[341531548,1730962250940,-500.0,0.00031769,4]
[341531549,1730962250949,-1722.06,0.00031769,4]
[341531550,1730962250958,-503.63167573,0.00031769,4]
[341531551,1730962250968,-500.0,0.00031769,4]
[341531552,1730962250982,-500.0,0.00031769,4]
[341531553,1730962250991,-535.46108489,0.00031769,4]
[341531554,1730962251000,-500.0,0.00031769,4]
[341531555,1730962251010,-4802.58,0.00031769,4]
[341531556,1730962251019,-1006.14,0.00031769,4]
[341531557,1730962251028,-500.0,0.00031769,4]
[341531558,1730962251038,-500.0,0.00031769,4]
[341531559,1730962251048,-503.2910406,0.00031769,4]
[341531560,1730962251057,-1764.8,0.00031769,4]
[341531561,1730962251067,-500.0,0.00031769,4]
[341531562,1730962251076,-500.0,0.00031769,4]
[341531563,1730962251086,-500.0,0.00031769,4]
[341531564,1730962251095,-500.0,0.00031769,4]
[341531565,1730962251105,-500.0,0.00031769,4]
[341531566,1730962251114,-500.0,0.00031769,4]
[341531567,1730962251123,-1024.19,0.00031769,4]
[341531568,1730962251132,-500.0,0.00031769,4]
[341531569,1730962251141,-523.33,0.00031769,4]
[341531570,1730962251152,-500.0,0.00031769,4]
[341531571,1730962251161,-500.0,0.00031769,4]
[341531572,1730962251171,-2281.98,0.00031769,4]
[341531573,1730962251180,-500.0,0.00031769,4]
[341531574,1730962251189,-500.0,0.00031769,4]
[341531575,1730962251199,-500.0,0.00031769,4]
[341531576,1730962251207,-1148.92,0.00031769,4]
[341531577,1730962251217,-500.0,0.00031769,4]
[341531578,1730962251227,-618.04,0.00031769,4]
[341531579,1730962251237,-500.0,0.00031769,4]
[341531580,1730962251246,-500.0,0.00031769,4]
[341531581,1730962251256,-4132.76,0.00031769,4]
[341531582,1730962251265,-500.0,0.00031769,4]
[341531583,1730962251274,-500.0,0.00031769,4]
[341531584,1730962251283,-503.83582851,0.00031769,4]
[341531585,1730962251292,-500.0,0.00031769,4]
[341531586,1730962251301,-203.52,0.00031769,4]
[341531587,1730962251310,-529.46,0.00031769,4]
[341531588,1730962251319,-622.03,0.00031769,4]
[341531589,1730962251328,-562.64,0.00031769,4]
[341531590,1730962251337,-500.0,0.00031769,4]
[341531591,1730962251346,-500.0,0.00031769,4]
[341531592,1730962251355,-500.0,0.00031769,4]
[341531593,1730962251364,-500.0,0.0003177,4]
[341531594,1730962251373,-616.65,0.0003177,4]
[341531595,1730962251383,-575.43,0.0003177,4]
[341531596,1730962251392,-500.0,0.0003177,4]
[341531597,1730962251401,-625.16,0.0003177,4]
[341531598,1730962251410,-587.14,0.0003177,4]
[341531599,1730962251419,-500.0,0.0003177,4]
[341531600,1730962251427,-809.28,0.0003177,4]
[341531601,1730962251436,-500.0,0.0003177,4]
[341531602,1730962251446,-999.3,0.0003177,4]
[341531603,1730962251455,-500.0,0.0003177,4]
[341531604,1730962251464,-500.0,0.0003177,4]
[341531605,1730962251475,-1419.86,0.0003177,4]
[341531606,1730962251484,-789.89,0.0003177,4]
[341531607,1730962251493,-502.97243455,0.0003177,4]
[341531608,1730962251502,-735.21,0.0003177,4]
[341531609,1730962251511,-512.43,0.0003177,4]
[341531610,1730962251520,-506.47361847,0.0003177,4]
[341531611,1730962251529,-557.9,0.0003177,4]
[341531612,1730962251538,-570.12,0.0003177,4]
[341531613,1730962251549,-500.0,0.0003177,4]
[341531614,1730962251559,-780.87,0.0003177,4]
[341531615,1730962251568,-500.0,0.0003177,4]
[341531616,1730962251577,-685.26,0.0003177,4]
[341531617,1730962251586,-905.86,0.0003177,4]
[341531618,1730962251595,-500.0,0.0003177,4]
[341531619,1730962251604,-500.0,0.0003177,4]
[341531620,1730962251613,-500.0,0.0003177,4]
[341531621,1730962251622,-500.0,0.0003177,4]
[341531622,1730962251631,-500.0,0.0003177,4]
[341531623,1730962251640,-500.0,0.0003177,4]
[341531624,1730962251649,-849.32,0.0003177,4]
[341531625,1730962251658,-500.0,0.0003177,4]
[341531626,1730962251670,-500.0,0.0003177,4]
[341531627,1730962251679,-500.0,0.0003177,4]
[341531628,1730962251688,-819.49,0.0003177,4]
[341531629,1730962251697,-500.0,0.0003177,4]
[341531630,1730962251708,-500.0,0.0003177,4]
[341531631,1730962251717,-500.0,0.0003177,4]
[341531632,1730962251728,-810.56,0.0003177,4]
[341531633,1730962251738,-500.0,0.0003177,4]
[341531634,1730962251748,-1345.2,0.0003177,4]
[341531635,1730962251757,-500.0,0.0003177,4]
[341531636,1730962251766,-638.29,0.0003177,4]
[341531637,1730962251775,-500.0,0.0003177,4]
[341531638,1730962251784,-746.32,0.0003177,4]
[341531639,1730962251793,-509.58,0.0003177,4]
[341531640,1730962251802,-1304.96,0.0003177,4]
[341531641,1730962251811,-858.56,0.0003177,4]
[341531642,1730962251820,-500.0,0.0003177,4]
[341531643,1730962251829,-500.0,0.0003177,4]
[341531644,1730962251838,-500.0,0.0003177,4]
[341531645,1730962251847,-500.0,0.0003177,4]
[341531646,1730962251856,-500.0,0.0003177,4]
[341531647,1730962251866,-500.0,0.0003177,4]
[341531648,1730962251875,-597.27,0.0003177,4]
[341531649,1730962251884,-1107.72,0.0003177,4]
[341531650,1730962251893,-847.61,0.0003177,4]
[341531651,1730962251903,-740.29,0.0003177,4]
[341531652,1730962251912,-830.53,0.0003177,4]
[341531653,1730962251921,-1377.05,0.0003177,4]
[341531654,1730962251930,-500.0,0.0003177,4]
[341531655,1730962251940,-500.0,0.0003177,4]
[341531656,1730962251949,-651.36,0.0003177,4]
[341531657,1730962251958,-555.34,0.0003177,4]
[341531658,1730962251967,-500.0,0.0003177,4]
[341531659,1730962251979,-645.26,0.0003177,4]
[341531660,1730962251988,-500.0,0.0003177,4]
[341531661,1730962251998,-500.0,0.0003177,4]
[341531662,1730962252007,-1716.52,0.0003177,4]
[341531663,1730962252017,-620.29,0.0003177,4]
[341531664,1730962252026,-500.0,0.0003177,4]
[341531665,1730962252035,-692.72,0.0003177,4]
[341531666,1730962252044,-500.0,0.0003177,4]
[341531667,1730962252054,-500.0,0.0003177,4]
[341531668,1730962252063,-500.0,0.0003177,4]
[341531669,1730962252072,-1942.44,0.0003177,4]
[341531670,1730962252081,-1239.88,0.0003177,4]
[341531671,1730962252091,-628.37,0.0003177,4]
[341531672,1730962252100,-765.26,0.0003177,4]
[341531673,1730962252110,-1066.22,0.0003177,4]
[341531674,1730962252119,-500.0,0.0003177,4]
[341531675,1730962252128,-500.0,0.0003177,4]
[341531676,1730962252138,-500.0,0.0003177,4]
[341531677,1730962252147,-724.65,0.0003177,4]
[341531678,1730962252156,-607.47817253,0.0003177,4]
[341531679,1730962252688,-683.385986,0.00031768,4]
[341531680,1730962252700,-3316.074014,0.00031768,4]
[341531681,1730962252711,-737.47182747,0.0003177,4]
[341531682,1730962252722,-2550.9,0.0003177,4]
[341531683,1730962252732,-500.0,0.0003177,4]
[341531684,1730962252742,-702.91,0.0003177,4]
[341531685,1730962252751,-696.84,0.0003177,4]
[341531686,1730962252761,-500.0,0.0003177,4]
[341531687,1730962252770,-870.76,0.0003177,4]
[341531688,1730962252780,-2325.41,0.0003177,4]
[341531689,1730962252790,-2107.16,0.0003177,4]
[341531690,1730962252800,-1360.27,0.0003177,4]
[341531691,1730962252809,-948.09,0.0003177,4]
[341531692,1730962252819,-7240.2,0.0003177,4]
[341531693,1730962252828,-1628.09,0.0003177,4]
[341531694,1730962252838,-500.0,0.0003177,4]
[341531695,1730962252847,-1031.61,0.0003177,4]
[341531696,1730962252857,-1477.07,0.0003177,4]
[341531697,1730962252866,-1247.69,0.0003177,4]
[341531698,1730962252876,-500.0,0.0003177,4]
[341531699,1730962252886,-523.04,0.0003177,4]
[341531700,1730962252896,-814.54,0.0003177,4]
[341531701,1730962252906,-500.0,0.0003177,4]
[341531702,1730962252916,-1287.4,0.0003177,4]
[341531703,1730962252926,-500.0,0.0003177,4]
[341531704,1730962252936,-500.0,0.0003177,4]
[341531705,1730962252947,-500.0,0.0003177,4]
[341531706,1730962252957,-2211.71,0.0003177,4]
[341531707,1730962252967,-3356.26,0.0003177,4]
[341531708,1730962252980,-500.0,0.0003177,4]
[341531709,1730962252990,-3329.3,0.0003177,4]
[341531710,1730962253000,-500.0,0.0003177,4]
[341531711,1730962253010,-500.0,0.0003177,4]
[341531712,1730962253020,-826.29,0.0003177,4]
[341531713,1730962253030,-681.95,0.0003177,4]
[341531714,1730962253040,-500.0,0.0003177,4]
[341531715,1730962253050,-500.0,0.0003177,4]
[341531716,1730962253060,-532.05671258,0.0003177,4]
[341531717,1730962253070,-1793.45,0.0003177,4]
[341531718,1730962253080,-500.0,0.0003177,4]
[341531719,1730962253092,-500.0,0.0003177,4]
[341531720,1730962253102,-500.0,0.0003177,4]
[341531721,1730962253113,-150.14289394,0.0003177,4]
[341531722,1730962253123,-500.0,0.0003177,4]
[341531723,1730962253133,-500.0,0.0003177,4]
[341531724,1730962253143,-1169.03,0.0003177,4]
[341531725,1730962253153,-500.0,0.0003177,4]
[341531726,1730962253163,-285.80371595,0.0003177,4]
[341531727,1730962253173,-515.29,0.0003177,4]
[341531728,1730962253183,-500.0,0.0003177,4]
[341531729,1730962253193,-673.45,0.0003177,4]
[341531730,1730962253202,-2944.64,0.0003177,4]
[341531731,1730962253212,-1648.15,0.0003177,4]
[341531732,1730962253225,-556.74,0.0003177,4]
[341531733,1730962253235,-2525.16,0.0003177,4]
[341531734,1730962253245,-500.0,0.0003177,4]
[341531735,1730962253255,-535.79601551,0.0003177,4]
[341531736,1730962253264,-1012.93,0.0003177,4]
[341531737,1730962253275,-224.35777261,0.0003177,4]
[341531738,1730962253284,-500.0,0.0003177,4]
[341531739,1730962253295,-500.0,0.0003177,4]
[341531740,1730962253305,-500.0,0.0003177,4]
[341531741,1730962253314,-500.0,0.0003177,4]
[341531742,1730962253324,-3166.65,0.0003177,4]
[341531743,1730962253333,-428.89658663,0.0003177,4]